[Event "IIFL Wealth 4th Mumbai GM"]
[Site "Mumbai"]
[Date "2018.12.30"]
[Round "1"]
[White "Khusenkhojaev, Muhammad"]
[Black "Surendran N"]
[Result "1-0"]
[ECO "E06"]
[WhiteElo "2455"]
[BlackElo "2176"]
[Annotator "ChessBase"]
[PlyCount "84"]
[EventDate "2018.12.30"]
[EventType "swiss"]
[EventCountry "IND"]
[SourceTitle "playchess.com"]
[Source "ChessBase"]
[SourceQuality "1"]
[TimeControl "40/5400+30:1800+30"]

1. d4 {[%emt 0:03:17]} Nf6 {[%emt 0:00:00]} 2. c4 {[%emt 0:00:12]} e6 {[%emt 0:00:00]} 3. g3 {[%emt 0:00:11]} d5 {[%emt 0:00:04]} 4. Nf3 {[%emt 0:00:17]} Be7 {[%emt 0:00:13]} 5. Bg2 {[%emt 0:00:10]} O-O {[%emt 0:00:06]} 6. O-O {[%emt 0:00:08]} dxc4 {[%emt 0:00:03]} 7. Ne5 {[%emt 0:00:17]} Nc6 {[%emt 0:00:40]} 8. Nxc6 {[%emt 0:00:13]} bxc6 {[%emt 0:00:05]} 9. Na3 {[%emt 0:00:08]} Bxa3 {[%emt 0:02:15]} 10. bxa3 {[%emt 0:00:09]} Ba6 {[%emt 0:04:36]} 11. Qd2 {[%emt 0:01:23]} Rb8 {[%emt 0:16:35]} 12. Qa5 {[%emt 0:00:12]} Rb6 {[%emt 0:00:04]} 13. a4 {[%emt 0:00:09]} Qc8 {[%emt 0:02:58]} 14. Ba3 {[%emt 0:01:52]} Rd8 {[%emt 0:02:11]} 15. Rfb1 {[%emt 0:00:42]} Qb7 {[%emt 0:09:03]} 16. Rd1 {[%emt 0:15:49]} Nd5 {[%emt 0:07:37]} 17. e4 {[%emt 0:27:05]} Nb4 {[%emt 0:02:22]} 18. Bxb4 {[%emt 0:02:10]} Rxb4 {[%emt 0:00:07]} 19. d5 {[%emt 0:00:05]} c3 {[%emt 0:39:12]} 20. dxe6 {[%emt 0:17:12]} Rxd1+ {[%emt 0:00:19]} 21. Rxd1 {[%emt 0:00:04]} Rb1 {[%emt 0:00:35]} 22. exf7+ {[%emt 0:03:23]} Kxf7 {[%emt 0:00:20]} 23. Qh5+ {[%emt 0:08:06]} Kf8 {[%emt 0:02:14]} 24. e5 {[%emt 0:06:02]} Rxd1+ {[%emt 0:09:21]} 25. Qxd1 {[%emt 0:00:04]} Bc4 {[%emt 0:00:50]} 26. Qd8+ {[%emt 0:05:44]} Kf7 {[%emt 0:00:02]} 27. Qd7+ {[%emt 0:00:21]} Kf8 {[%emt 0:00:07]} 28. Be4 {[%emt 0:00:56]} Qb4 {[%emt 0:00:58]} 29. Qd8+ {[%emt 0:02:57]} Kf7 {[%emt 0:00:02]} 30. Qxc7+ {[%emt 0:00:07]} Ke6 {[%emt 0:00:09]} 31. f4 {[%emt 0:01:12]} Qb6+ {[%emt 0:00:26]} 32. Qxb6 {[%emt 0:00:29]} axb6 {[%emt 0:00:01]} 33. Kf2 {[%emt 0:00:45]} Bd5 {[%emt 0:00:56]} 34. Bxh7 {[%emt 0:00:29]} Bxa2 {[%emt 0:01:37]} 35. Ke3 {[%emt 0:00:21]} Ke7 {[%emt 0:00:44]} 36. Be4 {[%emt 0:03:02]} Bd5 {[%emt 0:00:24]} 37. Bxd5 {[%emt 0:01:33]} cxd5 {[%emt 0:00:02]} 38. Kd3 {[%emt 0:00:10]} d4 {[%emt 0:00:06]} 39. f5 {[%emt 0:00:24]} Kd7 {[%emt 0:00:51]} 40. h4 {[%emt 0:00:00]} Kc6 {[%emt 0:00:00]} 41. h5 {[%emt 0:01:16]} Kc5 {[%emt 0:00:51]} 42. f6 {[%emt 0:00:30]} gxf6 {[%emt 0:01:16]} 1-0

[Event "IIFL Wealth 4th Mumbai GM"]
[Site "Mumbai"]
[Date "2018.12.30"]
[Round "1"]
[White "Shyaamnikhil P"]
[Black "Subrota, Biswas"]
[Result "1-0"]
[ECO "B23"]
[WhiteElo "2448"]
[BlackElo "2171"]
[Annotator "NA"]
[PlyCount "53"]
[EventDate "2018.12.30"]
[EventType "swiss"]
[EventCountry "IND"]
[SourceTitle "playchess.com"]
[Source "ChessBase"]
[SourceQuality "1"]
[TimeControl "40/5400+30:1800+30"]

1. e4 {[%emt 0:00:00]} c5 {[%emt 0:00:00]} 2. Nc3 {[%emt 0:01:55]} Nc6 {[%emt 0:00:00]} 3. Nge2 {[%emt 0:01:23]} e5 {[%emt 0:01:48]} 4. Nd5 {[%emt 0:00:24]} d6 {[%emt 0:00:49]} 5. Nec3 {[%emt 0:00:35]} Nf6 {[%emt 0:07:41]} 6. Bc4 {[%emt 0:01:03]} Be7 {[%emt 0:00:41]} 7. O-O {[%emt 0:02:30]} O-O {[%emt 0:01:07]} 8. d3 {[%emt 0:00:44]} Na5 {[%emt 0:06:09]} 9. Nxe7+ {[%emt 0:05:37]} Qxe7 {[%emt 0:00:05]} 10. Bg5 {[%emt 0:00:11]} Nxc4 {[%emt 0:23:29]} 11. dxc4 {[%emt 0:08:22]} Qe6 {[%emt 0:10:22]} 12. Qf3 {[%emt 0:03:49]} Ne8 {[%emt 0:02:29]} 13. Qd3 {[%emt 0:01:23]} Bd7 {[%emt 0:06:18]} 14. f4 {[%emt 0:03:12]} f6 {[%emt 0:01:47]} 15. f5 {[%emt 0:00:47]} Qf7 {[%emt 0:00:02]} 16. Bd2 {[%emt 0:00:56]} Bc6 {[%emt 0:02:07]} 17. Rf3 {[%emt 0:00:29]} Nc7 {[%emt 0:04:30]} 18. Rh3 {[%emt 0:03:06]} Rad8 {[%emt 0:06:36]} 19. b3 {[%emt 0:00:34]} g5 {[%emt 0:02:36]} 20. fxg6 {[%emt 0:07:09]} hxg6 {[%emt 0:00:02]} 21. Bh6 {[%emt 0:00:16]} Rfe8 {[%emt 0:04:18]} 22. Rf1 {[%emt 0:00:20]} b5 {[%emt 0:04:50]} 23. cxb5 {[%emt 0:01:28]} Bb7 {[%emt 0:00:02]} 24. Qg3 {[%emt 0:04:22]} Bc8 {[%emt 0:05:28]} 25. Rh4 {[%emt 0:01:02]} f5 {[%emt 0:02:47]} 26. exf5 {[%emt 0:00:42]} Bxf5 {[%emt 0:00:04]} 27. Rh5 {[%emt 0:01:09]} 1-0

[Event "IIFL Wealth 4th Mumbai GM"]
[Site "Mumbai"]
[Date "2018.12.30"]
[Round "1"]
[White "Czebe, Attila"]
[Black "Vantika Agrawal"]
[Result "1/2-1/2"]
[ECO "A05"]
[WhiteElo "2417"]
[BlackElo "2143"]
[Annotator "NA"]
[PlyCount "100"]
[EventDate "2018.12.30"]
[EventType "swiss"]
[EventCountry "IND"]
[SourceTitle "playchess.com"]
[Source "ChessBase"]
[SourceQuality "1"]
[TimeControl "40/5400+30:1800+30"]

1. Nf3 {[%emt 0:00:00]} Nf6 {[%emt 0:00:24]} 2. g3 {[%emt 0:00:00]} g6 {[%emt 0:00:07]} 3. b3 {[%emt 0:01:08]} Bg7 {[%emt 0:02:00]} 4. Bb2 {[%emt 0:00:04]} O-O {[%emt 0:00:19]} 5. Bg2 {[%emt 0:00:03]} d6 {[%emt 0:06:22]} 6. d4 {[%emt 0:04:03]} a5 {[%emt 0:02:39]} 7. O-O {[%emt 0:01:58]} a4 {[%emt 0:05:01]} 8. Nc3 {[%emt 0:03:46]} axb3 {[%emt 0:37:43]} 9. axb3 {[%emt 0:01:26]} Rxa1 {[%emt 0:05:58]} 10. Qxa1 {[%emt 0:00:16]} Na6 {[%emt 0:06:11]} 11. e4 {[%emt 0:00:50]} c6 {[%emt 0:01:53]} 12. Ne1 {[%emt 0:02:07]} h5 {[%emt 0:14:20]} 13. h3 {[%emt 0:02:30]} Nd7 {[%emt 0:11:17]} 14. Ne2 {[%emt 0:01:20]} e5 {[%emt 0:01:01]} 15. Nd3 {[%emt 0:01:13]} Re8 {[%emt 0:00:55]} 16. Rd1 {[%emt 0:06:20]} Qc7 {[%emt 0:00:48]} 17. Ne1 {[%emt 0:00:20]} Nf8 {[%emt 0:00:52]} 18. Nf3 {[%emt 0:00:56]} Nb4 {[%emt 0:00:36]} 19. Qb1 {[%emt 0:11:06]} Ne6 {[%emt 0:00:26]} 20. c3 {[%emt 0:03:52]} Na6 {[%emt 0:00:11]} 21. Qc2 {[%emt 0:00:28]} Bd7 {[%emt 0:00:40]} 22. Kh2 {[%emt 0:10:17]} Nf8 {[%emt 0:00:43]} 23. c4 {[%emt 0:03:56]} c5 {[%emt 0:00:29]} 24. dxe5 {[%emt 0:00:08]} dxe5 {[%emt 0:00:18]} 25. Nc3 {[%emt 0:00:11]} Nb4 {[%emt 0:00:31]} 26. Nd5 {[%emt 0:01:52]} Nxc2 {[%emt 0:00:35]} 27. Nxc7 {[%emt 0:00:06]} Rc8 {[%emt 0:00:14]} 28. Nd5 {[%emt 0:00:06]} Re8 {[%emt 0:00:41]} 29. Bxe5 {[%emt 0:00:42]} Rxe5 {[%emt 0:00:43]} 30. Nxe5 {[%emt 0:00:07]} Bxe5 {[%emt 0:00:07]} 31. f4 {[%emt 0:00:07]} Bd4 {[%emt 0:00:45]} 32. e5 {[%emt 0:00:02]} Kg7 {[%emt 0:00:30]} 33. Be4 {[%emt 0:02:16]} Na1 {[%emt 0:00:39]} 34. b4 {[%emt 0:02:46]} Ba4 {[%emt 0:00:22]} 35. Rb1 {[%emt 0:00:12]} Ne6 {[%emt 0:00:32]} 36. Nf6 {[%emt 0:04:26]} Nb3 {[%emt 0:00:35]} 37. bxc5 {[%emt 0:04:44]} Nexc5 {[%emt 0:00:19]} 38. Rd1 {[%emt 0:00:21]} Nxe4 {[%emt 0:00:35]} 39. Nxe4 {[%emt 0:00:05]} Bc6 {[%emt 0:00:20]} 40. Nf6 {[%emt 0:00:00]} Bb6 {[%emt 0:00:00]} 41. Rb1 {[%emt 0:03:25]} Ba4 {[%emt 0:06:58]} 42. Ne8+ {[%emt 0:00:11]} Kf8 {[%emt 0:03:07]} 43. Nd6 {[%emt 0:00:16]} Be3 {[%emt 0:05:08]} 44. f5 {[%emt 0:14:08]} b6 {[%emt 0:08:03]} 45. fxg6 {[%emt 0:01:49]} Nd2 {[%emt 0:07:08]} 46. Ra1 {[%emt 0:00:12]} Bc6 {[%emt 0:00:14]} 47. gxf7 {[%emt 0:02:13]} Nf3+ {[%emt 0:00:17]} 48. Kg2 {[%emt 0:00:02]} Nd2+ {[%emt 0:02:46]} 49. Kh2 {[%emt 0:00:01]} Nf3+ {[%emt 0:00:23]} 50. Kg2 {[%emt 0:00:01]} Nd2+ {[%emt 0:02:15]} 1/2-1/2

[Event "IIFL Wealth 4th Mumbai GM"]
[Site "Mumbai"]
[Date "2018.12.30"]
[Round "1"]
[White "Sardana, Rishi"]
[Black "Gandhi, Anish"]
[Result "1-0"]
[ECO "B90"]
[WhiteElo "2398"]
[BlackElo "2134"]
[Annotator "NA"]
[PlyCount "81"]
[EventDate "2018.12.30"]
[EventType "swiss"]
[EventCountry "IND"]
[SourceTitle "playchess.com"]
[Source "ChessBase"]
[SourceQuality "1"]
[TimeControl "40/5400+30:1800+30"]

1. e4 {[%emt 0:00:00]} c5 {[%emt 0:00:00]} 2. Nf3 {[%emt 0:00:00]} d6 {[%emt 0:00:00]} 3. d4 {[%emt 0:00:00]} cxd4 {[%emt 0:00:00]} 4. Nxd4 {[%emt 0:00:00]} Nf6 {[%emt 0:00:02]} 5. Nc3 {[%emt 0:00:00]} a6 {[%emt 0:00:05]} 6. h3 {[%emt 0:00:14]} e5 {[%emt 0:00:11]} 7. Nde2 {[%emt 0:00:07]} h5 {[%emt 0:00:32]} 8. g3 {[%emt 0:00:19]} Be6 {[%emt 0:01:43]} 9. Bg2 {[%emt 0:00:11]} Nbd7 {[%emt 0:00:18]} 10. a4 {[%emt 0:00:57]} Rc8 {[%emt 0:03:00]} 11. O-O {[%emt 0:00:09]} Be7 {[%emt 0:08:39]} 12. b3 {[%emt 0:02:55]} h4 {[%emt 0:04:03]} 13. g4 {[%emt 0:04:15]} Nh7 {[%emt 0:06:24]} 14. Be3 {[%emt 0:03:50]} Nb8 {[%emt 0:01:52]} 15. a5 {[%emt 0:00:54]} Nc6 {[%emt 0:01:35]} 16. Na4 {[%emt 0:03:15]} Bg5 {[%emt 0:07:26]} 17. Bb6 {[%emt 0:02:07]} Qd7 {[%emt 0:02:10]} 18. c4 {[%emt 0:02:00]} Nf6 {[%emt 0:06:32]} 19. Qd3 {[%emt 0:05:32]} Nxg4 {[%emt 0:08:54]} 20. hxg4 {[%emt 0:00:54]} Bxg4 {[%emt 0:04:39]} 21. Bf3 {[%emt 0:09:32]} Nb4 {[%emt 0:14:33]} 22. Qc3 {[%emt 0:00:13]} Rh6 {[%emt 0:04:47]} 23. Kh2 {[%emt 0:05:17]} Rf6 {[%emt 0:02:07]} 24. Bxg4 {[%emt 0:05:20]} Qxg4 {[%emt 0:00:07]} 25. Qh3 {[%emt 0:10:53]} Bf4+ {[%emt 0:04:51]} 26. Nxf4 {[%emt 0:00:40]} Qxf4+ {[%emt 0:00:13]} 27. Kh1 {[%emt 0:00:39]} Qxe4+ {[%emt 0:01:55]} 28. f3 {[%emt 0:00:25]} Qc6 {[%emt 0:00:15]} 29. Nc3 {[%emt 0:00:34]} Qd7 {[%emt 0:02:43]} 30. Qxd7+ {[%emt 0:00:57]} Kxd7 {[%emt 0:00:06]} 31. Rad1 {[%emt 0:01:37]} Kc6 {[%emt 0:01:24]} 32. Rd2 {[%emt 0:10:03]} Re8 {[%emt 0:02:12]} 33. Rfd1 {[%emt 0:01:36]} Rg6 {[%emt 0:02:14]} 34. Ra1 {[%emt 0:10:17]} Kd7 {[%emt 0:09:21]} 35. Bc5 {[%emt 0:00:17]} Nc6 {[%emt 0:00:16]} 36. Ne4 {[%emt 0:00:22]} Ree6 {[%emt 0:01:01]} 37. Rad1 {[%emt 0:01:54]} Nxa5 {[%emt 0:00:29]} 38. Bxd6 {[%emt 0:00:29]} Kc6 {[%emt 0:00:22]} 39. Bb8 {[%emt 0:08:13]} Nxb3 {[%emt 0:00:27]} 40. Rd7 {[%emt 0:00:00]} Re8 {[%emt 0:00:00]} 41. R7d6+ {[%emt 0:00:58] Kd5} 1-0

[Event "IIFL Wealth 4th Mumbai GM"]
[Site "Mumbai"]
[Date "2018.12.30"]
[Round "1"]
[White "Mohammad Fahad, Rahman"]
[Black "Vatsal Singhania"]
[Result "1-0"]
[ECO "B67"]
[WhiteElo "2381"]
[BlackElo "2130"]
[Annotator "NA"]
[PlyCount "48"]
[EventDate "2018.12.30"]
[EventType "swiss"]
[EventCountry "IND"]
[SourceTitle "playchess.com"]
[Source "ChessBase"]
[SourceQuality "1"]
[TimeControl "40/5400+30:1800+30"]

1. e4 {[%emt 0:00:00]} c5 {[%emt 0:00:00]} 2. Nf3 {[%emt 0:00:00]} d6 {[%emt 0:00:00]} 3. d4 {[%emt 0:00:00]} cxd4 {[%emt 0:00:00]} 4. Nxd4 {[%emt 0:00:00]} Nf6 {[%emt 0:00:05]} 5. Nc3 {[%emt 0:00:08]} Nc6 {[%emt 0:00:29]} 6. Bg5 {[%emt 0:02:02]} e6 {[%emt 0:00:07]} 7. Qd2 {[%emt 0:00:16]} a6 {[%emt 0:00:06]} 8. O-O-O {[%emt 0:01:19]} Bd7 {[%emt 0:00:06]} 9. f4 {[%emt 0:00:56]} h6 {[%emt 0:00:07]} 10. Bxf6 {[%emt 0:01:26]} Qxf6 {[%emt 0:00:07]} 11. Nf3 {[%emt 0:06:06]} Qd8 {[%emt 0:00:59]} 12. g4 {[%emt 0:02:53]} b5 {[%emt 0:01:33]} 13. f5 {[%emt 0:04:48]} Be7 {[%emt 0:06:03]} 14. Kb1 {[%emt 0:01:20]} b4 {[%emt 0:03:39]} 15. Ne2 {[%emt 0:04:08]} Ne5 {[%emt 0:06:29]} 16. Ned4 {[%emt 0:16:30]} a5 {[%emt 0:15:09]} 17. fxe6 {[%emt 0:02:26]} fxe6 {[%emt 0:00:09]} 18. Nxe5 {[%emt 0:00:17]} dxe5 {[%emt 0:00:20]} 19. Nxe6 {[%emt 0:00:20]} Bxe6 {[%emt 0:01:29]} 20. Bb5+ {[%emt 0:00:11]} Kf7 {[%emt 0:00:16]} 21. Qf2+ {[%emt 0:00:10]} Bf6 {[%emt 0:00:04]} 22. Rxd8 {[%emt 0:00:07]} Rf8 23. Rxa8 {[%emt 0:03:59]} Rxa8 {[%emt 0:00:42]} 24. Qe2 {[%emt 0:10:03]} Rd8 {[%emt 0:01:17]} 1-0

[Event "IIFL Wealth 4th Mumbai GM"]
[Site "Mumbai"]
[Date "2018.12.30"]
[Round "1"]
[White "Raghunandan, Kaumandur Srihari"]
[Black "Saksham Rautela"]
[Result "1/2-1/2"]
[ECO "A61"]
[WhiteElo "2378"]
[BlackElo "2123"]
[Annotator "NA"]
[PlyCount "127"]
[EventDate "2018.12.30"]
[EventType "swiss"]
[EventCountry "IND"]
[SourceTitle "playchess.com"]
[Source "ChessBase"]
[SourceQuality "1"]
[TimeControl "40/5400+30:1800+30"]

1. d4 Nf6 2. c4 c5 3. d5 e6 4. Nc3 exd5 5. cxd5 d6 6. Nf3 g6 7. Bf4 Bg7 8. Qa4+ Bd7 9. Qb3 b5 10. Bxd6 Qb6 11. Be5 O-O 12. e3 c4 13. Qd1 b4 14. Nb1 Bb5 15. a3 Nbd7 16. Bd4 Qa5 17. Qd2 c3 18. bxc3 Ne4 19. Qc2 Nxc3 20. Bxb5 Bxd4 21. Nxd4 Nxb5 22. Nb3 Qa4 23. axb4 Qxb4+ 24. N1d2 Nf6 25. Qc6 Ne4 26. Qc4 Qxc4 27. Nxc4 Nec3 28. d6 Rac8 29. Nba5 Rfd8 30. f3 Nxd6 31. Ne5 Re8 32. Nac6 Nc4 33. Nxa7 Nxe5 34. Nxc8 Rxc8 35. e4 Nb5 36. O-O Nd4 37. Ra2 Kg7 38. Rd1 Nec6 39. Rad2 Ne6 40. Rc2 Rd8 41. Rd5 Nb4 42. Rxd8 Nxc2 43. Rd7 Ncd4 44. Kf2 g5 45. Ke3 Nc6 46. Rd1 Ne5 47. Rc1 Kg6 48. Rc8 Kg7 49. g3 Ng6 50. Rc1 Kf6 51. Rb1 h5 52. Rb5 h4 53. Rf5+ Ke7 54. Kd3 hxg3 55. hxg3 Kd6 56. Ke3 Ke7 57. Kf2 Ke8 58. Kg2 Ke7 59. Ra5 Kf6 60. Ra6 Kg7 61. Ra5 Kf6 62. Rf5+ Ke7 63. Kf2 Ke8 64. Ke3 1/2-1/2

[Event "IIFL Wealth 4th Mumbai GM"]
[Site "Mumbai"]
[Date "2018.12.30"]
[Round "1"]
[White "Rathnakaran, K.."]
[Black "Mahindrakar Indrajeet"]
[Result "1-0"]
[ECO "B04"]
[WhiteElo "2366"]
[BlackElo "2106"]
[Annotator "NA"]
[PlyCount "61"]
[EventDate "2018.12.30"]
[EventType "swiss"]
[EventCountry "IND"]
[SourceTitle "playchess.com"]
[Source "ChessBase"]
[SourceQuality "1"]
[TimeControl "40/5400+30:1800+30"]

1. e4 {[%emt 0:00:00]} Nf6 {[%emt 0:00:00]} 2. e5 {[%emt 0:00:00]} Nd5 {[%emt 0:00:09]} 3. d4 {[%emt 0:00:00]} d6 {[%emt 0:00:06]} 4. Nf3 {[%emt 0:00:00]} dxe5 {[%emt 0:02:06]} 5. dxe5 {[%emt 0:00:06]} Bg4 {[%emt 0:05:45]} 6. h3 {[%emt 0:00:54]} Bxf3 {[%emt 0:04:06]} 7. gxf3 {[%emt 0:00:18]} e6 {[%emt 0:02:23]} 8. c3 Qh4 {[%emt 0:08:13]} 9. Rg1 {[%emt 0:01:46]} Bc5 {[%emt 0:07:17]} 10. Qc2 {[%emt 0:01:01]} Nc6 {[%emt 0:06:15]} 11. Rg4 {[%emt 0:06:01]} Qh5 {[%emt 0:08:00]} 12. f4 {[%emt 0:02:52]} O-O-O {[%emt 0:03:53]} 13. Nd2 {[%emt 0:09:34]} f5 {[%emt 0:07:13]} 14. exf6 {[%emt 0:06:32]} gxf6 {[%emt 0:02:42]} 15. b4 {[%emt 0:00:06]} Bxb4 {[%emt 0:24:06]} 16. cxb4 {[%emt 0:09:54]} Nd4 {[%emt 0:00:43]} 17. Qc5 {[%emt 0:03:55]} e5 {[%emt 0:07:50]} 18. Bb2 {[%emt 0:05:35]} f5 {[%emt 0:02:03]} 19. Rg5 {[%emt 0:11:43]} Qh4 {[%emt 0:04:09]} 20. Bxd4 {[%emt 0:08:29]} exd4 {[%emt 0:00:17]} 21. O-O-O {[%emt 0:03:10]} Qxf4 {[%emt 0:00:23]} 22. Rg3 {[%emt 0:00:39]} Nc3 {[%emt 0:01:27]} 23. Qxa7 {[%emt 0:02:18]} Qe5 {[%emt 0:01:46]} 24. Rxc3 {[%emt 0:02:13]} dxc3 {[%emt 0:00:13]} 25. Qa8+ {[%emt 0:00:05]} Kd7 {[%emt 0:00:03]} 26. Nf3+ {[%emt 0:00:11]} Ke7 {[%emt 0:00:35]} 27. Qxd8+ {[%emt 0:00:08]} Rxd8 {[%emt 0:00:22]} 28. Nxe5 {[%emt 0:00:06]} Ra8 {[%emt 0:00:23]} 29. Bc4 {[%emt 0:00:13]} Kf6 {[%emt 0:00:44]} 30. f4 {[%emt 0:00:08]} b5 {[%emt 0:00:39]} 31. Bb3 {[%emt 0:00:05]} 1-0

[Event "IIFL Wealth 4th Mumbai GM"]
[Site "Mumbai"]
[Date "2018.12.30"]
[Round "1"]
[White "Kulkarni, Vikramaditya"]
[Black "Kavinda, Akila"]
[Result "1-0"]
[ECO "A10"]
[WhiteElo "2345"]
[BlackElo "2092"]
[Annotator "NA"]
[PlyCount "81"]
[EventDate "2018.12.30"]
[EventType "swiss"]
[EventCountry "IND"]
[SourceTitle "playchess.com"]
[Source "ChessBase"]
[SourceQuality "1"]
[TimeControl "40/5400+30:1800+30"]

1. c4 {[%emt 0:00:00]} g6 {[%emt 0:00:00]} 2. e4 {[%emt 0:00:00]} e5 {[%emt 0:00:18]} 3. f4 {[%emt 0:03:33]} exf4 {[%emt 0:13:16]} 4. d4 {[%emt 0:05:45]} Qh4+ {[%emt 0:13:01]} 5. Ke2 {[%emt 0:00:11]} Nf6 {[%emt 0:09:12]} 6. Nf3 {[%emt 0:04:09]} Qg4 {[%emt 0:01:20]} 7. Nc3 {[%emt 0:01:10]} Bb4 {[%emt 0:07:30]} 8. e5 {[%emt 0:06:15]} Qe6 {[%emt 0:09:51]} 9. Nb5 {[%emt 0:11:56]} O-O {[%emt 0:19:14]} 10. a3 {[%emt 0:17:22]} Ba5 {[%emt 0:02:14]} 11. b4 {[%emt 0:09:57]} c6 {[%emt 0:06:45]} 12. d5 {[%emt 0:02:12]} Qe7 {[%emt 0:04:06]} 13. d6 {[%emt 0:00:30]} Qe6 {[%emt 0:00:49]} 14. Nbd4 {[%emt 0:02:42]} Qxc4+ {[%emt 0:00:28]} 15. Qd3 {[%emt 0:07:59]} Qxd3+ {[%emt 0:00:33]} 16. Kxd3 {[%emt 0:00:02]} Ng4 {[%emt 0:00:06]} 17. bxa5 {[%emt 0:00:09]} Nf2+ {[%emt 0:00:02]} 18. Ke2 {[%emt 0:00:11]} Nxh1 {[%emt 0:00:06]} 19. Bxf4 {[%emt 0:00:07]} b6 {[%emt 0:01:23]} 20. Ke3 {[%emt 0:00:38]} Ba6 {[%emt 0:03:18]} 21. Bxa6 {[%emt 0:00:44]} Nxa6 {[%emt 0:00:05]} 22. Rxh1 {[%emt 0:01:45]} Nc5 {[%emt 0:04:20]} 23. Bg5 {[%emt 0:00:30]} bxa5 {[%emt 0:02:51]} 24. Rc1 {[%emt 0:00:39]} Ne6 {[%emt 0:00:14]} 25. Be7 {[%emt 0:01:32]} Rfb8 {[%emt 0:00:17]} 26. Nxe6 {[%emt 0:00:11]} Rb3+ {[%emt 0:00:50]} 27. Ke2 {[%emt 0:14:30]} fxe6 {[%emt 0:00:04]} 28. Nd4 {[%emt 0:00:16]} Rb2+ {[%emt 0:01:04]} 29. Kf3 {[%emt 0:00:11]} Rb7 {[%emt 0:00:40]} 30. Kg4 {[%emt 0:02:12]} Rc8 31. Rc5 {[%emt 0:00:21]} h6 {[%emt 0:00:54]} 32. h4 {[%emt 0:00:28]} Kf7 {[%emt 0:00:33]} 33. g3 {[%emt 0:00:16]} a4 {[%emt 0:00:20]} 34. Kf4 {[%emt 0:00:55]} Rcb8 {[%emt 0:00:33]} 35. Bf6 {[%emt 0:00:47]} Ke8 {[%emt 0:00:29]} 36. Bg7 {[%emt 0:00:21]} h5 {[%emt 0:00:16]} 37. Kg5 {[%emt 0:00:20]} Kf7 {[%emt 0:00:05]} 38. Kh6 {[%emt 0:00:23]} Rg8 {[%emt 0:00:19]} 39. Bf6 {[%emt 0:00:00]} Rgb8 {[%emt 0:00:41]} 40. Bg7 {[%emt 0:01:00]} Rg8 {[%emt 0:00:19]} 41. Bf6 {[%emt 0:30:15]} 1-0

[Event "IIFL Wealth 4th Mumbai GM"]
[Site "Mumbai"]
[Date "2018.12.30"]
[Round "1"]
[White "Ritviz, Parab"]
[Black "abzid, Rahman"]
[Result "1-0"]
[ECO "B20"]
[WhiteElo "2338"]
[BlackElo "2040"]
[Annotator "NA"]
[PlyCount "35"]
[EventDate "2018.12.30"]
[EventType "swiss"]
[EventCountry "IND"]
[SourceTitle "playchess.com"]
[Source "ChessBase"]
[SourceQuality "1"]
[TimeControl "40/5400+30:1800+30"]

1. e4 {[%emt 0:01:07]} c5 {[%emt 0:00:00]} 2. f3 Nc6 3. f4 {[%emt 0:00:15]} e6 {[%emt 0:02:17]} 4. Nf3 {[%emt 0:00:07]} a6 {[%emt 0:00:15]} 5. g3 {[%emt 0:00:42]} h5 {[%emt 0:01:30]} 6. h3 {[%emt 0:02:14]} Qc7 {[%emt 0:00:34]} 7. d3 {[%emt 0:00:09]} b5 {[%emt 0:00:53]} 8. Bg2 {[%emt 0:03:22]} Bb7 {[%emt 0:01:22]} 9. Be3 {[%emt 0:01:32]} Rc8 {[%emt 0:01:32]} 10. O-O {[%emt 0:00:25]} Be7 {[%emt 0:00:34]} 11. Qe2 {[%emt 0:02:53]} Nd4 {[%emt 0:04:41]} 12. Nxd4 {[%emt 0:01:18]} cxd4 {[%emt 0:05:45]} 13. Bxd4 {[%emt 0:00:40]} Rh6 {[%emt 0:11:24]} 14. Bxg7 {[%emt 0:05:45]} Rg6 {[%emt 0:00:19]} 15. Be5 {[%emt 0:00:03]} Qb6+ {[%emt 0:03:27]} 16. Kh2 {[%emt 0:00:09]} b4 {[%emt 0:02:16]} 17. d4 {[%emt 0:07:29]} h4 18. g4 {[%emt 0:11:42] hxg3+ Kh1 [%clk 1:10:15]} 1-0

[Event "IIFL Wealth 4th Mumbai GM"]
[Site "Mumbai"]
[Date "2018.12.30"]
[Round "1"]
[White "Ameir, Moheb"]
[Black "Thapa, Krishna"]
[Result "1-0"]
[ECO "B44"]
[WhiteElo "2327"]
[BlackElo "2024"]
[Annotator "NA"]
[PlyCount "81"]
[EventDate "2018.12.30"]
[EventType "swiss"]
[EventCountry "IND"]
[SourceTitle "playchess.com"]
[Source "ChessBase"]
[SourceQuality "1"]
[TimeControl "40/5400+30:1800+30"]

1. e4 {[%emt 0:00:00]} c5 {[%emt 0:00:00]} 2. Nf3 {[%emt 0:00:00]} e6 {[%emt 0:00:00]} 3. d4 {[%emt 0:00:00]} cxd4 {[%emt 0:00:00]} 4. Nxd4 {[%emt 0:00:05]} Nc6 {[%emt 0:00:00]} 5. Nb5 {[%emt 0:00:37]} d6 {[%emt 0:00:00]} 6. c4 {[%emt 0:00:14]} a6 {[%emt 0:00:33]} 7. N5c3 {[%emt 0:01:15]} Nf6 {[%emt 0:00:08]} 8. Be2 {[%emt 0:01:10]} Be7 {[%emt 0:00:24]} 9. Be3 {[%emt 0:00:14]} O-O {[%emt 0:00:24]} 10. O-O {[%emt 0:00:02]} Qc7 {[%emt 0:01:50]} 11. Na3 {[%emt 0:00:37]} Bd7 {[%emt 0:04:49]} 12. Rc1 {[%emt 0:02:48]} Ne5 {[%emt 0:05:25]} 13. f4 {[%emt 0:00:24]} Ng6 {[%emt 0:00:08]} 14. Nab1 {[%emt 0:02:39]} Rad8 {[%emt 0:03:16]} 15. Nd2 {[%emt 0:02:45]} Rfe8 {[%emt 0:00:44]} 16. Qe1 {[%emt 0:01:35]} Bf8 {[%emt 0:00:58]} 17. Qf2 {[%emt 0:00:31]} Rc8 {[%emt 0:00:39]} 18. g4 {[%emt 0:06:13]} Bc6 {[%emt 0:10:34]} 19. b4 {[%emt 0:03:50]} b6 {[%emt 0:12:35]} 20. b5 {[%emt 0:07:02]} Bb7 {[%emt 0:05:35]} 21. bxa6 {[%emt 0:07:36]} Bxa6 {[%emt 0:01:23]} 22. c5 {[%emt 0:05:12]} b5 {[%emt 0:13:53]} 23. g5 {[%emt 0:08:58]} b4 {[%emt 0:07:56]} 24. gxf6 {[%emt 0:05:59]} bxc3 {[%emt 0:00:26]} 25. Bxa6 {[%emt 0:01:01]} cxd2 {[%emt 0:03:06]} 26. Qxd2 {[%emt 0:00:15]} Ra8 {[%emt 0:01:15]} 27. Bb5 {[%emt 0:00:17]} Reb8 {[%emt 0:00:10]} 28. fxg7 {[%emt 0:01:33]} Kxg7 {[%emt 0:01:07]} 29. cxd6 {[%emt 0:01:40]} Qxd6 {[%emt 0:00:58]} 30. Qd3 Qd5 31. Qxd5 {[%emt 0:06:03]} Be7 32. Qd6 Bxd6 {[%emt 0:01:10]} 33. a4 {[%emt 0:00:31]} e5 {[%emt 0:00:23]} 34. Rc6 {[%emt 0:08:57]} Rd8 {[%emt 0:04:12]} 35. Bb6 {[%emt 0:00:26]} Rd7 {[%emt 0:01:05]} 36. Rc4 {[%emt 0:03:33]} Rb7 {[%emt 0:09:43]} 37. Bc6 {[%emt 0:00:53]} Rc8 {[%emt 0:01:17]} 38. Bxb7 {[%emt 0:00:30]} Rxc4 {[%emt 0:00:14]} 39. a5 {[%emt 0:00:21]} Bb8 {[%emt 0:10:35]} 40. f5 {[%emt 0:05:02]} Rb4 {[%emt 0:00:47]} 41. fxg6 {[%emt 0:30:20]} 1-0